[Event "AUT Bundesliga 2024-25"]
[Site "Austria"]
[Date "2025.04.04"]
[Round "9.33"]
[White "Halvax, Georg"]
[Black "Markus, Robert"]
[Result "1-0"]
[Annotator "TA"]
[ECO "A53"]
[WhiteElo "2441"]
[BlackElo "2595"]
[PlyCount "119"]
[EventDate "2024.08.28"]
[EventType "team-tourn"]
[EventCountry "AUT"]
[SourceTitle "playchess.com"]
[Source "ChessBase"]
[SourceQuality "1"]
[TimeControl "40/5400+30:1800+30"]

{[%evp 9,119,33,78,80,76,31,34,45,41,27,61,33,33,40,32,23,33,27,26,6,28,15,31,25,35,31,30,0,51,47,52,0,58,26,21,8,0,0,7,0,18,0,45,17,41,30,83,80,66,74,91,78,86,83,120,115,145,76,66,71,78,77,84,0,47,29,201,216,237,326,188,246,197,325,205,275,417,547,385,562,551,482,519,538,531,215,207,212,202,0,0,0,1329,447,1501,1420,748,60,4472,4447,2577,2266,3933,2482,12845,6099,29977,29978,29978,29979,29986,29987]} 1. d4 {[%emt 0:00:08]} Nf6 {[%emt 0:00:07]} 2. c4 {[%emt 0:00:14]} d6 {[%emt 0:00:05]} 3. Nc3 {[%emt 0:00:12]} Nbd7 {[%emt 0:00:06]} 4. e4 {[%emt 0:00:10]} e5 {[%emt 0:00:06]} 5. d5 {[%emt 0:00:07]} h5 {[%emt 0:02:06]} 6. Bd3 {[%emt 0:00:10] A53: Old Indian Defence without Nf3.} g6 {[%emt 0:02:54]} 7. h4 $146 {[%emt 0:03:11]} (7. Nf3 Bh6 8. Bxh6 Rxh6 9. Qd2 Rh8 10. O-O-O a5 11. Kb1 Nc5 12. Bc2 Bg4 13. Qe3 a4 {0-1 Manukian,A (2196)-Diaz Perez,M (2473) Titled Tuesday intern op 27th Jun Early blitz 2023 (4)}) 7... Nc5 {[%emt 0:05:49]} 8. Bc2 {[%emt 0:00:36] White is slightly better.} a5 {[%emt 0:00:06]} 9. f3 {[%emt 0:03:20]} Qe7 {[%emt 0:07:51]} 10. Be3 {[%emt 0:02:42]} Bh6 {[%emt 0:02:43]} 11. Bxh6 {[%emt 0:01:46]} Rxh6 {[%emt 0:00:06]} 12. Qd2 {[%emt 0:00:06]} Rh8 {[%emt 0:01:15]} 13. O-O-O {[%emt 0:00:19]} Kf8 {[%emt 0:03:23]} 14. g3 {[%emt 0:02:52]} Kg7 {[%emt 0:01:01]} 15. Nh3 {[%emt 0:02:52]} Bxh3 {[%emt 0:06:20]} 16. Rxh3 {[%emt 0:00:57]} Rad8 {[%emt 0:03:33]} 17. Re1 {[%emt 0:09:31]} c6 {[%emt 0:05:39]} 18. f4 {[%emt 0:07:03]} Ng4 {[%emt 0:04:45]} (18... Qc7 $11) 19. Rhh1 {[%emt 0:02:04]} Nd7 {[%emt 0:04:16]} 20. Rhf1 {[%emt 0:06:35]} (20. Bd1 $14) 20... Nb6 {[%emt 0:06:45]} (20... exf4 $1 $11 21. Rxf4 Rhf8) 21. b3 {[%emt 0:04:20]} a4 $1 {[%emt 0:00:37]} 22. Bd1 {[%emt 0:04:34] Black should prevent Bxg4.} (22. bxa4 Nxc4 23. Qd3 exf4 24. Qd4+ Nce5 25. gxf4 c5) 22... axb3 {[%emt 0:02:52]} 23. axb3 {[%emt 0:00:30]} Nf6 {[%emt 0:04:10]} 24. f5 {[%emt 0:02:15]} Nbd7 {[%emt 0:00:59]} 25. Rf2 {[%emt 0:07:01]} Nf8 {[%emt 0:08:19]} 26. Qe3 {[%emt 0:08:26]} N8h7 {[%emt 0:05:19]} 27. Rg1 {[%emt 0:04:21]} Rhg8 {[%emt 0:00:31]} (27... Ra8 $11) 28. g4 {[%emt 0:08:43]} (28. Kb2 {seems wilder.} Rdf8 29. g4 hxg4 30. Bxg4 Nxg4 31. Rxg4 Nf6 32. Rg1) 28... hxg4 {[%emt 0:01:10]} 29. fxg6 {[%emt 0:00:06]} fxg6 {[%emt 0:00:06] White has space advantage and is better} 30. Bxg4 {[%emt 0:00:08] White has more active pieces.} Nxg4 {[%emt 0:04:26]} 31. Rxg4 {[%emt 0:01:07]} Kh8 {[%emt 0:00:05]} 32. Rfg2 $36 {[%emt 0:01:54][%csl Og6][%mdl 2048] White attacks a weakness White is in control.} Qf7 {[%emt 0:03:46]} 33. Qh6 {[%emt 0:02:25] White attacks} ({White should play} 33. Qg1) 33... Qf1+ $16 {[%emt 0:02:51]} 34. Kc2 {[%emt 0:03:39]} Rdf8 {[%emt 0:01:42]} 35. Qd2 $1 {[%emt 0:05:02]} (35. Rxg6 Qxg2+ 36. Rxg2 Rxg2+ 37. Kc1 Rf6 $15) 35... Rf6 {[%emt 0:02:46] [#]} 36. c5 {[%emt 0:03:23]} Rgf8 {[%emt 0:06:13]} (36... dxc5 $11 {feels stronger.} 37. d6 Rf7) 37. dxc6 {[%emt 0:02:51]} (37. Rxg6 $2 Rxg6 38. Rxg6 Rf2 (38... dxc5 39. Rg2 $16) 39. cxd6 Rxd2+ 40. Kxd2 Qf2+ 41. Kc1 Qd4 $19 (41... Qxh4 $2 42. d7 $19)) (37. Rg1 {simplifies} Qf2 38. Qxf2 Rxf2+ 39. Kc1) 37... Rf2 $2 {[%emt 0:00:30]} (37... bxc6 $11 {and Black has nothing to worry.} 38. Rg1 (38. cxd6 $2 Rf2 $19) (38. Rxg6 $2 Rxg6 39. Rxg6 Rf2 $19) 38... Qf2 39. Qxf2 (39. Rxg6 Qxc5 40. Rxf6 Rxf6 $11) 39... Rxf2+ 40. Kc1 (40. Kd3 $2 R8f3+ 41. Kc4 Rc2 $19) 40... R2f3 (40... dxc5 41. Rxg6 R2f3 42. Kc2 $16)) 38. Rxf2 $18 {[%emt 0:00:02]} Rxf2 {[%emt 0:00:07]} 39. cxb7 {[%emt 0:00:07]} Rxd2+ {[%emt 0:00:46]} 40. Kxd2 {[%emt 0:00:09]} Qf2+ {[%emt 0:02:04]} (40... dxc5 $2 41. b8=Q+ (41. b8=B $2 Qf2+ 42. Kc1 Qd4 $19) 41... Qf8 42. Qxf8+ (42. Qxe5+ Qg7 $18) 42... Nxf8 43. Na4 $18) 41. Ne2 {[%emt 0:08:10]} Qf8 {[%emt 0:02:32]} 42. Rxg6 {[%emt 0:11:06]} Qb8 {[%emt 0:04:02]} (42... dxc5 $2 43. Ra6 Kg7 44. Ra8 Qd6+ 45. Kc2 $18) (42... Qd8 {is a better defense.}) 43. c6 {[%emt 0:00:23]} (43. cxd6 $2 Qxb7 44. Nc3 Qf7 $19 (44... Qxb3 45. d7 $15)) 43... Nf8 {[%emt 0:00:17]} 44. Rg1 {[%emt 0:02:37]} Ne6 {[%emt 0:05:01]} 45. Ra1 $1 {[%emt 0:00:39]} Nc7 {[%emt 0:00:06] Repels Ra8} 46. b4 {[%emt 0:03:05][%cal Ob4b5] b5! would now be deadly.} d5 {[%emt 0:01:07][%cal Bd6d5,Bd5e4,Be4e3][%mdl 32] [#]} 47. b5 $1 {[%emt 0:02:01][%mdl 512]} dxe4 {[%emt 0:04:09][%cal Oh8g7]} (47... Qd8 48. Nc3) 48. b6 {[%emt 0:00:07][%cal Bb5b6,Bb6c7][%mdl 32]} Qd8+ {[%emt 0:00:20] [#]} 49. Kc1 $2 {[%emt 0:02:03]} (49. Kc2 $1 $18 Ne8 (49... Qd3+ 50. Kc1 $18) 50. Ra8 Qd3+ 51. Kc1 Qe3+ 52. Kd1 Qd3+ 53. Ke1) 49... e3 $1 $11 {[%emt 0:00:13]} 50. Nd4 {[%emt 0:00:59] Really sharp!} Kh7 $2 {[%emt 0:04:17][%mdl 8192]} (50... exd4 $2 51. bxc7 Qxc7 52. Ra8+ Kh7 53. b8=Q $18 (53. b8=B Qxc6+ 54. Kb2 Qb7+ 55. Kc2 Qxa8 56. Bf4 Qe4+ 57. Kc1 Qxf4 58. Kc2 e2 59. h5 e1=Q 60. Kb3 Qf3+ 61. Kc4 Qec3+ 62. Kb5 Qfc6#) (53. Rc8 Qf4 $18)) (50... Qxd4 $11 51. b8=Q+ (51. b8=B $2 Qd2+ 52. Kb1 e2 53. bxc7 e1=Q#) 51... Kg7 52. Qxc7+ (52. bxc7 Qxa1+ 53. Kc2 Qa4+ 54. Qb3 Qxc6+ 55. Qc3 Qg6+ 56. Kb2 Qg2+ 57. Ka3 Qa8+ 58. Kb2 Qb7+ 59. Kc2 Qe4+ 60. Kd1 Qf3+ 61. Kc2 Qe2+ 62. Kb1 Qd1+ 63. Kb2 Qe2+ 64. Kb3 Qb5+ 65. Ka2 Qa6+ 66. Kb1 Qb7+ 67. Kc1 Qh1+ 68. Kc2 Qe4+ 69. Kb2 Qg2+ 70. Ka3 Qa8+ 71. Kb2 Qb7+ 72. Kc2 Qe4+ $11) 52... Kf6) 51. bxc7 $18 {[%emt 0:08:00]} Qxd4 {[%emt 0:00:22]} 52. b8=Q {[%emt 0:01:22] Intending Ra7 and mate.} (52. b8=B $2 Qd2+ (52... Qxa1+ {gets mated.} 53. Kc2 Qa2+ 54. Kd3 Qb3+ 55. Ke2 e4 56. Kf1 Qc2 57. Kg1 Qf2+ 58. Kh1 e2 59. c8=Q e1=Q#) 53. Kb1 e2 54. c8=Q e1=Q#) ({Worse is} 52. c8=Q Qc3+ 53. Kb1 Qb4+ 54. Kc2 Qc4+ 55. Kb2 Qb4+ 56. Kc2 Qc4+ 57. Kb2 Qb4+ 58. Ka2 Qa4+ 59. Kb2 Qb4+ $11) 52... Qxa1+ {[%emt 0:02:17][%mdl 4096] Endgame KQ-KQ. White is a pawn up.} 53. Kc2 $2 {[%emt 0:00:00]} (53. Qb1+ $18 Qxb1+ 54. Kxb1) 53... Qa2+ $4 {[%emt 0:03:27][%mdl 8192]} (53... Qa4+ $14 54. Qb3 Qxc6+ 55. Qc3 Qg2+ 56. Kd3 Qg6+ 57. Kxe3 Qg3+ 58. Kd2 Qf2+ 59. Kc1 Qg1+ 60. Kc2 Qf2+ 61. Kb3 Qb6+ 62. Ka4 Qa6+ 63. Qa5 Qc4+ 64. Ka3 Qc1+ 65. Kb4 Qe1+ 66. Kb5 Qf1+ 67. Kb6 Qf6+ 68. Ka7 Qf7) 54. Qb2 {[%emt 0:00:00]} Qc4+ {[%emt 0:03:04]} 55. Qc3 {[%emt 0:00:27]} Qe2+ {[%emt 0:00:17]} 56. Kc1 {[%emt 0:00:27]} Qf1+ {[%emt 0:00:25]} 57. Kb2 {[%emt 0:00:06]} Qa6 {[%emt 0:04:41]} 58. Qxe3 {[%emt 0:01:07] White mates.} Qxc6 {[%emt 0:00:49]} 59. Qxe5 {[%emt 0:00:24]} Kg6 {[%emt 0:00:21]} 60. h5+ {[%emt 0:00:36] Weighted Error Value: White=0.35/Black=0.50  Loses game:     	---       	Black=2      Missed win:     	White=1     	---        Mistake:       	White=4     	Black=5      Inaccurate:     	White=5     	Black=3      OK:         	White=12    	Black=18     Best:        	White=4     	Black=4      Strong:       	White=2     	Black=2} 1-0

[Event "AUT Bundesliga 2024-25"]
[Site "Austria"]
[Date "2025.04.04"]
[Round "9.34"]
[White "Korpa, Bence"]
[Black "Handler, Lukas"]
[Result "1-0"]
[Annotator "TA"]
[ECO "D00"]
[WhiteElo "2543"]
[BlackElo "2444"]
[PlyCount "89"]
[EventDate "2024.08.28"]
[EventType "team-tourn"]
[EventCountry "AUT"]
[SourceTitle "playchess.com"]
[Source "ChessBase"]
[SourceQuality "1"]
[TimeControl "40/5400+30:1800+30"]

{[%evp 11,89,0,1,0,0,-4,0,0,0,0,0,0,0,-2,-4,0,-9,-3,-5,-16,-11,-33,0,0,0,0,0,0,0,0,0,0,0,0,0,0,0,0,0,0,0,0,0,0,0,0,0,0,0,0,11,11,11,12,15,0,0,0,0,0,0,0,50,28,69,70,131,79,45,0,0,0,0,0,106,93,145,100,29993,29994]} 1. d4 {[%emt 0:00:04]} d5 {[%emt 0:00:08]} 2. Bf4 {[%emt 0:00:09]} Nf6 {[%emt 0:00:45]} 3. e3 {[%emt 0:00:22]} c5 {[%emt 0:01:36]} 4. c3 {[%emt 0:00:27]} Nc6 {[%emt 0:00:24]} 5. Nd2 {[%emt 0:00:12]} e6 {[%emt 0:00:19]} 6. Bd3 {[%emt 0:02:26]} Bd6 {[%emt 0:00:29]} 7. Bxd6 $1 {[%emt 0:00:35] 7.Bxd6 is better than 7.Bg3. D00: 1 d4 d5: Unusual lines.} Qxd6 {[%emt 0:00:15]} 8. f4 {[%emt 0:00:09]} cxd4 {[%emt 0:05:02]} 9. cxd4 {[%emt 0:00:09] The position is equal.} Bd7 {[%emt 0:02:48]} 10. a3 {[%emt 0:02:29] Dodges Nb4} Ne7 {[%emt 0:05:28]} 11. Ngf3 {[%emt 0:02:36]} Qb6 {[%emt 0:05:13][%cal Od7b5]} 12. Qe2 {[%emt 0:05:36]} Qxb2 {[%emt 0:12:48]} 13. O-O {[%emt 0:00:13] White sacrificed a pawn} Qb6 $146 {[%emt 0:02:18]} (13... O-O 14. a4 Qb6 15. Ne5 Rfc8 16. a5 Qd8 17. g4 Be8 18. Rf3 Rc3 19. Rh3 Ng6 {1-0 Sengupta,D (2559)-Fedorchuk,S (2631) Purtichju op 6th 2019 (4)}) 14. Ne5 {[%emt 0:06:27]} Bc6 {[%emt 0:05:35]} 15. Rab1 {[%emt 0:13:49]} Qc7 {[%emt 0:02:54]} 16. Qf3 {[%emt 0:00:28]} Nd7 {[%emt 0:19:07]} 17. Qh5 {[%emt 0:09:57][%csl LRf7,LRh7]} g6 {[%emt 0:03:55]} 18. Qh6 {[%emt 0:00:09]} Nxe5 $1 {[%emt 0:01:36]} 19. fxe5 {[%emt 0:00:05]} Nf5 $1 {[%emt 0:01:04]} 20. Bxf5 {[%emt 0:00:16]} gxf5 {[%emt 0:01:13]} 21. Nb3 {[%emt 0:03:08]} O-O-O {[%emt 0:09:23]} 22. Rfc1 {[%emt 0:14:50] [#]} Kb8 $1 {[%emt 0:02:02]} 23. Nc5 {[%emt 0:00:09]} Qe7 $1 {[%emt 0:02:35]} 24. Nxe6 {[%emt 0:02:15]} fxe6 {[%emt 0:01:33]} 25. Rxc6 {[%emt 0:00:21]} Rhe8 {[%emt 0:01:52][%cal Od8c8]} 26. a4 {[%emt 0:22:02]} Rc8 {[%emt 0:04:11]} 27. Rxc8+ {[%emt 0:00:18]} Rxc8 $11 {[%emt 0:00:16][%mdl 4096] Endgame KQR-KQR} 28. h3 {[%emt 0:00:27]} Rg8 {[%emt 0:05:01]} 29. Rb2 {[%emt 0:05:29]} Rg6 {[%emt 0:01:15]} 30. Qh5 {[%emt 0:00:07]} Qf7 {[%emt 0:01:40][%cal Og6g2] Threatens to win with ...Rxg2+!.} 31. Qh4 {[%emt 0:00:38]} Rg8 {[%emt 0:00:43] Prevents Qd8+} 32. a5 {[%emt 0:01:47][%cal Ba4a5,Ba5a6][%mdl 32]} Qg7 {[%emt 0:00:57]} 33. a6 {[%emt 0:00:16]} b6 {[%emt 0:01:05]} 34. Kh2 {[%emt 0:02:25]} Rc8 {[%emt 0:01:11]} 35. g4 {[%emt 0:01:33]} fxg4 {[%emt 0:00:33]} 36. hxg4 {[%emt 0:00:38]} Kc7 {[%emt 0:00:38]} (36... Rf8 $11) 37. Kg3 {[%emt 0:01:10]} Kd7 {[%emt 0:00:28]} 38. Rh2 {[%emt 0:00:21]} (38. Rf2 {keeps more tension.} Rc1 39. Qh5 Ke7 40. Kg2) 38... Rh8 {[%emt 0:00:20]} (38... Rc1 $1 $14) 39. Qh5 {[%emt 0:02:24] White is more active.} (39. Qh6 $142 Qxh6 40. Rxh6) 39... h6 $16 {[%emt 0:00:36]} 40. Rh1 {[%emt 0:02:27]} (40. Rf2 {simplifies} Rf8 41. Rxf8 Qxf8 42. Qg6) 40... b5 $1 {[%emt 0:00:28]} 41. Rc1 {[%emt 0:09:54] Threatens to win with Rc5.} b4 {[%emt 0:06:54]} 42. e4 $36 {[%emt 0:05:11][%mdl 2048] White fights for an advantage.} Rf8 {[%emt 0:05:23]} (42... dxe4 $11 43. Rf1 Rf8) 43. exd5 {[%emt 0:03:24]} exd5 {[%emt 0:00:06]} 44. Rc5 {[%emt 0:01:51] Threatening mate with e6+. Some like it hot} Qh7 $2 {[%emt 0:01:47][%mdl 8192] [#]} (44... Qg5 $16 45. Rxd5+ Kc6 46. Rd6+ Kb5 47. Qxh6 (47. Rxh6 $2 {perishes.} Qe3+ 48. Kh4 Rf2 $19) 47... Qxh6 48. Rxh6 b3) 45. e6+ $1 {[%emt 0:00:17] Weighted Error Value: White=0.06 (flawless) /Black=0.24 (precise)   Loses game:     	---       	Black=1      Mistake:       	White=1     	Black=3      Inaccurate:     	White=1     	Black=3      OK:         	White=20    	Black=15     Best:        	White=2     	Black=2      Strong:       	White=1     	Black=5} ({Not} 45. Rxd5+ Kc6 46. Rc5+ Kb6 $16) 1-0

[Event "AUT Bundesliga 2024-25"]
[Site "Austria"]
[Date "2025.04.04"]
[Round "9.35"]
[White "Bauer, Sebastian"]
[Black "Subelj, Jan"]
[Result "1/2-1/2"]
[Annotator "TA"]
[ECO "B13"]
[WhiteElo "2312"]
[BlackElo "2528"]
[PlyCount "237"]
[EventDate "2024.08.28"]
[EventType "team-tourn"]
[EventCountry "AUT"]
[SourceTitle "playchess.com"]
[Source "ChessBase"]
[SourceQuality "1"]
[TimeControl "40/5400+30:1800+30"]

{[%evp 11,237,16,11,15,16,11,17,15,12,5,13,12,15,13,11,10,12,15,8,5,18,6,23,0,14,0,0,0,0,0,0,0,0,0,0,0,2,17,3,8,8,0,0,0,7,9,14,0,0,0,0,0,0,-45,-55,-119,-87,-88,-64,-116,-130,-122,0,-8,0,-139,0,-123,0,-118,-127,-118,-81,-59,0,0,0,0,0,0,0,-31,0,0,0,0,0,0,0,0,0,0,0,0,0,0,0,0,-4,0,-8,-21,-8,-8,0,0,0,0,0,0,0,0,0,0,0,0,0,0,0,0,0,0,0,0,0,-6,-6,-6,-6,-6,0,0,0,0,0,-6,-6,-6,-6,-6,0,-6,0,0,0,0,0,0,0,0,0,0,0,0,0,0,0,0,0,0,0,0,0,0,0,0,0,0,0,0,0,0,0,0,0,0,0,0,0,0,0,0,0,0,0,0,0,0,0,0,0,0,0,0,0,0,0,0,0,0,0,0,0,0,0,0,0,0,0,0,0,0,0,0,0,-9,-9,-9,-9,-9,-9,-9,0,0,0,0,0,0]} 1. e4 {[%emt 0:00:03]} c6 {[%emt 0:01:29]} 2. d4 {[%emt 0:00:19]} d5 {[%emt 0:00:06]} 3. exd5 {[%emt 0:00:24]} cxd5 {[%emt 0:00:07]} 4. Bd3 {[%emt 0:00:07]} Nf6 {[%emt 0:00:44]} 5. c3 {[%emt 0:04:05]} Bg4 {[%emt 0:01:08]} 6. Qb3 {[%emt 0:01:55]} Qc7 {[%emt 0:00:36]} 7. h3 {[%emt 0:03:28] B13: Caro-Kann: Exchange Variation and Panov-Botvinnik Attack.} Bh5 {[%emt 0:03:55]} 8. Ne2 $1 {[%emt 0:02:06] The main line 8.Ne2 scores better than 8.g4.} Nc6 {[%emt 0:03:11]} 9. Bf4 {[%emt 0:01:16]} Qd7 {[%emt 0:00:53]} 10. Nd2 {[%emt 0:00:30]} e6 {[%emt 0:01:13]} 11. Ng1 $146 {[%emt 0:03:40]} (11. O-O Bd6 12. Bxd6 Qxd6 13. Ng3 Bg6 14. Bxg6 hxg6 15. Nf3 O-O-O 16. Rfe1 Qf4 17. Qd1 {0-1 Gukesh,D (2720)-Rapport,R (2731) Wch Blitz Samarkand 2023 (7)}) 11... Bd6 {[%emt 0:05:54]} 12. Bxd6 {[%emt 0:00:37]} Qxd6 {[%emt 0:00:06]} 13. Ngf3 {[%emt 0:00:11]} O-O {[%emt 0:01:23]} 14. O-O {[%emt 0:00:08]} Rab8 {[%emt 0:00:17]} 15. Rfe1 {[%emt 0:01:07]} Qc7 {[%emt 0:15:22]} 16. a3 {[%emt 0:17:14]} Rfc8 {[%emt 0:02:37]} 17. Qc2 {[%emt 0:07:02]} a5 {[%emt 0:12:49]} 18. a4 {[%emt 0:11:45]} Nb4 {[%emt 0:06:36]} 19. cxb4 {[%emt 0:01:44]} Qxc2 {[%emt 0:01:47]} 20. Bxc2 {[%emt 0:00:09]} Rxc2 {[%emt 0:00:08]} 21. bxa5 {[%emt 0:00:40]} Rxb2 {[%emt 0:00:48]} 22. Reb1 {[%emt 0:01:15]} Rxb1+ {[%emt 0:00:09]} 23. Rxb1 {[%emt 0:00:05]} Nd7 {[%emt 0:00:04]} 24. Ne5 {[%emt 0:15:13]} Nxe5 {[%emt 0:00:29]} 25. dxe5 $11 {[%emt 0:00:01][%mdl 4096] Endgame a6 is the strong threat. KRB-KRN} Be2 {[%emt 0:00:09]} 26. Rc1 {[%emt 0:00:54]} h6 {[%emt 0:11:27]} 27. f4 {[%emt 0:05:53]} Rd8 {[%emt 0:04:28]} 28. Kf2 {[%emt 0:03:12]} Ba6 {[%emt 0:00:07]} 29. Rc5 {[%emt 0:07:51]} d4 {[%emt 0:03:17]} 30. Kf3 {[%emt 0:02:42]} d3 {[%emt 0:01:46]} 31. Ke3 {[%emt 0:00:53]} g5 {[%emt 0:01:03]} 32. fxg5 {[%emt 0:03:43]} hxg5 {[%emt 0:00:12]} 33. Ke4 {[%emt 0:01:26]} ({White should try} 33. g3 $15) 33... Kg7 {[%emt 0:00:10]} 34. Ke3 {[%emt 0:00:12]} Kh6 {[%emt 0:00:30]} 35. Ke4 {[%emt 0:02:44]} (35. g3 $1 $15) 35... Kg6 $17 {[%emt 0:00:06]} 36. Ke3 {[%emt 0:00:12] [#]} Kf5 {[%emt 0:00:13]} (36... Kg7 $1 $17) 37. Rc7 {[%emt 0:00:16]} Kg6 {[%emt 0:01:25]} (37... Rd5 $11 38. Rxf7+ Kxe5) 38. Rc5 {[%emt 0:00:05]} Kh6 {[%emt 0:00:34]} 39. Ke4 $1 {[%emt 0:00:07]} Kg7 {[%emt 0:00:04]} 40. Ke3 {[%emt 0:00:29]} Kg6 {[%emt 0:00:04]} 41. Ke4 {[%emt 0:30:47]} Rd7 {[%emt 0:30:22]} 42. Ke3 {[%emt 0:00:00]} Kf5 {[%emt 0:00:00]} ({Black should try} 42... Kh5 $15) 43. Ne4 $1 $11 {[%emt 0:00:00]} d2 {[%emt 0:00:00]} 44. Nd6+ {[%emt 0:00:00]} (44. Nxd2 $2 Rd3+ 45. Ke2 Rd5+ $19 (45... Rxh3+ 46. Kf2 $17)) 44... Kg6 {[%emt 0:00:00]} 45. Kxd2 {[%emt 0:00:00]} f6 {[%emt 0:00:00]} 46. Kc3 {[%emt 0:00:00]} fxe5 {[%emt 0:00:00]} 47. Nc4 {[%emt 0:00:00] The position is equal.} Bxc4 {[%emt 0:00:00]} 48. Rxc4 {[%emt 0:00:00] KR-KR} Kf5 {[%emt 0:00:00]} 49. g4+ {[%emt 0:00:00]} Kf6 {[%emt 0:00:00]} 50. Kb4 {[%emt 0:00:00]} Rd5 {[%emt 0:00:00]} 51. Kc3 $1 {[%emt 0:00:00]} ({Don't blunder} 51. Rc7 $2 e4 52. Rc3 (52. Rxb7 $2 {loses.} e3 $19) 52... Ke5 $19) 51... Rxa5 {[%emt 0:00:00]} 52. Kd3 {[%emt 0:00:20]} Rd5+ {[%emt 0:00:00]} 53. Ke4 {[%emt 0:02:34]} Rd2 {[%emt 0:00:00]} 54. Rb4 $1 {[%emt 0:01:07]} Ra2 {[%emt 0:00:00]} 55. Kf3 {[%emt 0:00:51]} Ra3+ {[%emt 0:00:00]} 56. Kg2 {[%emt 0:00:08] [#]} b6 $1 {[%emt 0:00:00]} 57. Kh2 {[%emt 0:01:29]} Rf3 {[%emt 0:00:00]} 58. Rxb6 {[%emt 0:03:44]} e4 {[%emt 0:00:00][%cal Be5e4,Be4e3][%mdl 32]} 59. Rb5 {[%emt 0:00:43]} e3 {[%emt 0:00:00] ( -> ...e2)} 60. Kg2 {[%emt 0:00:47]} Rf2+ {[%emt 0:00:00]} 61. Kg1 {[%emt 0:00:53]} Ra2 {[%emt 0:00:00] ( -> ...Ra1+)} 62. Kf1 $1 {[%emt 0:00:29]} Rxa4 {[%emt 0:00:00]} 63. Ke2 {[%emt 0:00:41]} Ra2+ {[%emt 0:00:00]} 64. Kxe3 {[%emt 0:00:01]} Rh2 {[%emt 0:00:00]} 65. Ra5 {[%emt 0:00:17]} Rxh3+ {[%emt 0:00:00]} 66. Kf2 {[%emt 0:00:01]} Rd3 {[%emt 0:00:00]} 67. Kg2 {[%emt 0:01:24]} Rd5 {[%emt 0:00:00]} 68. Ra8 {[%emt 0:00:17]} Ke5 {[%emt 0:00:00]} 69. Re8 {[%emt 0:00:25]} Ra5 {[%emt 0:00:00]} 70. Rb8 {[%emt 0:00:51]} Kd4 {[%emt 0:00:00]} 71. Rb4+ {[%emt 0:00:27]} Ke5 {[%emt 0:00:00]} 72. Kf3 {[%emt 0:00:55]} Ra3+ {[%emt 0:00:00]} 73. Kf2 {[%emt 0:00:22]} Rd3 {[%emt 0:00:00]} 74. Rb5+ {[%emt 0:00:46]} Rd5 {[%emt 0:00:00]} 75. Rb6 {[%emt 0:00:03]} Rc5 {[%emt 0:00:00]} 76. Ra6 {[%emt 0:00:12]} Kd5 {[%emt 0:00:00]} 77. Rb6 {[%emt 0:00:52]} Ra5 {[%emt 0:00:00]} 78. Rb8 {[%emt 0:00:29]} Kd4 {[%emt 0:00:00]} 79. Rb4+ {[%emt 0:00:12]} Kc5 {[%emt 0:00:00]} 80. Rb8 {[%emt 0:00:20]} Kc4 {[%emt 0:00:00]} 81. Ke3 {[%emt 0:00:35]} Re5+ {[%emt 0:00:00]} 82. Kf3 {[%emt 0:00:04]} Kc3 {[%emt 0:00:00]} 83. Rd8 {[%emt 0:00:25]} Kc4 {[%emt 0:00:00]} 84. Rd7 {[%emt 0:00:09]} Kc5 {[%emt 0:00:00]} 85. Rd8 {[%emt 0:00:03]} Rd5 {[%emt 0:00:00]} 86. Ra8 {[%emt 0:00:27]} Kd6 {[%emt 0:00:08]} 87. Ke4 {[%emt 0:00:23]} Rb5 {[%emt 0:00:17]} 88. Ra6+ {[%emt 0:00:25]} Ke7 {[%emt 0:00:06]} 89. Ra4 {[%emt 0:00:15]} Rb3 {[%emt 0:00:06]} 90. Ke5 {[%emt 0:01:24]} Re3+ {[%emt 0:00:06]} 91. Kd4 {[%emt 0:00:03]} Re1 {[%emt 0:00:05]} 92. Kd3 {[%emt 0:00:18]} Kf6 {[%emt 0:01:39]} 93. Kd2 {[%emt 0:00:04]} Rf1 {[%emt 0:00:05]} 94. Ke3 {[%emt 0:00:07] Wards off Rf4} Rb1 {[%emt 0:00:07]} 95. Kf3 {[%emt 0:00:16]} Rb3+ {[%emt 0:00:04]} 96. Kf2 {[%emt 0:00:10]} Ke5 {[%emt 0:00:04]} 97. Ra5+ {[%emt 0:00:09]} Kf6 {[%emt 0:00:06]} 98. Ra4 {[%emt 0:00:04]} Rd3 {[%emt 0:00:04]} 99. Ke2 {[%emt 0:00:15]} Rd5 {[%emt 0:00:06]} 100. Kf3 {[%emt 0:00:04]} Ke5 {[%emt 0:00:11]} 101. Re4+ {[%emt 0:00:09]} Kd6 {[%emt 0:00:07]} 102. Ra4 {[%emt 0:00:03]} Rc5 {[%emt 0:00:08]} 103. Ra8 {[%emt 0:00:37]} Kd5 {[%emt 0:00:18]} 104. Ra3 {[%emt 0:01:41]} e5 {[%emt 0:01:27]} 105. Rd3+ {[%emt 0:00:53]} Ke6 {[%emt 0:00:04]} 106. Ra3 {[%emt 0:00:10]} Rc4 {[%emt 0:00:12]} 107. Ra6+ {[%emt 0:02:20]} Kd5 {[%emt 0:00:02] aiming for ...e4+.} 108. Rg6 {[%emt 0:00:11]} Rc3+ {[%emt 0:00:19]} 109. Kf2 {[%emt 0:00:18]} Kd4 {[%emt 0:00:07]} 110. Rxg5 {[%emt 0:00:16]} e4 {[%emt 0:00:06]} 111. Ra5 {[%emt 0:00:52]} Rc2+ {[%emt 0:00:56]} 112. Ke1 {[%emt 0:00:12]} Ke3 {[%emt 0:00:03][%cal Rc2c1]} 113. Ra3+ {[%emt 0:00:04]} Kf4 {[%emt 0:00:04]} 114. Rb3 {[%emt 0:00:14]} Kxg4 {[%emt 0:00:06]} 115. Ra3 {[%emt 0:00:02]} Rh2 {[%emt 0:00:10]} 116. Rb3 {[%emt 0:00:15]} Rh3 {[%emt 0:00:04]} 117. Rxh3 {[%emt 0:00:24]} Kxh3 {[%emt 0:00:04]} 118. Ke2 {[%emt 0:00:04]} e3 {[%emt 0:00:03]} 119. Kxe3 {[%emt 0:00:35] Weighted Error Value: White=0.06 (flawless) /Black=0.15 (very precise)   Mistake:       	White=2     	Black=3      Inaccurate:     	White=2     	Black=2      OK:         	White=50    	Black=34     Best:        	White=8     	Black=3      Strong:       	White=5     	---} 1/2-1/2